[Event "*** Titled Tuesday Blitz"]
[Site "Chess.com"]
[Date "2018.05.01"]
[Round "9"]
[White "tigra"]
[Black "gmjlh"]
[Result "1-0"]
[WhiteElo "2723"]
[BlackElo "2612"]
[TimeControl "180+2"]
[EndTime "15:00:36 PDT"]
[Termination "tigra won by resignation"]

1. d4 {[%clk 0:02:17.6]} 1... d5 {[%clk 0:02:59.1]} 2. Bf4 {[%clk 0:02:18.6]}
2... Nf6 {[%clk 0:02:59.3]} 3. Nc3 {[%clk 0:02:18.8]} 3... a6 {[%clk 0:02:57.3]}
4. e4 {[%clk 0:02:18.5]} 4... dxe4 {[%clk 0:02:50.6]} 5. f3 {[%clk 0:02:17.4]}
5... exf3 {[%clk 0:02:47.9]} 6. Nxf3 {[%clk 0:02:15.6]} 6... Bg4 {[%clk
0:02:49]} 7. Bc4 {[%clk 0:02:15.6]} 7... e6 {[%clk 0:02:49.7]} 8. O-O {[%clk
0:02:10]} 8... Nc6 {[%clk 0:02:49.1]} 9. d5 {[%clk 0:02:09.3]} 9... Bc5+ {[%clk
0:02:46.5]} 10. Kh1 {[%clk 0:02:10]} 10... exd5 {[%clk 0:02:43.6]} 11. Re1+
{[%clk 0:02:04.3]} 11... Ne7 {[%clk 0:02:43.7]} 12. Nxd5 {[%clk 0:02:02.9]}
12... Nxd5 {[%clk 0:02:42.6]} 13. Bxd5 {[%clk 0:02:02.9]} 13... O-O {[%clk
0:02:13.3]} 14. Bxb7 {[%clk 0:02:03.6]} 14... Qxd1 {[%clk 0:02:04.9]} 15. Raxd1
{[%clk 0:02:05.5]} 15... Rab8 {[%clk 0:02:05.8]} 16. Bxa6 {[%clk 0:01:52.3]}
16... Rxb2 {[%clk 0:02:03.5]} 17. Bc4 {[%clk 0:01:49.1]} 17... Ng6 {[%clk
0:01:50.5]} 18. Bxc7 {[%clk 0:01:45.4]} 18... Rc8 {[%clk 0:01:06]} 19. Bg3
{[%clk 0:01:11.4]} 19... Bb4 {[%clk 0:00:58.6]} 20. Bb3 {[%clk 0:00:44.2]} 20...
Bxe1 {[%clk 0:00:51.8]} 21. Rxe1 {[%clk 0:00:46.1]} 21... Bxf3 {[%clk
0:00:34.6]} 22. gxf3 {[%clk 0:00:48]} 22... h5 {[%clk 0:00:36.3]} 23. Rc1 {[%clk
0:00:40.4]} 23... h4 {[%clk 0:00:19.8]} 24. Bd6 {[%clk 0:00:39.6]} 24... h3
{[%clk 0:00:16.8]} 25. Ba3 {[%clk 0:00:39.4]} 25... Rxb3 {[%clk 0:00:14.5]} 26.
axb3 {[%clk 0:00:39]} 26... Nh4 {[%clk 0:00:10.4]} 27. c4 {[%clk 0:00:38.9]}
27... Nxf3 {[%clk 0:00:10]} 28. c5 {[%clk 0:00:37]} 28... Re8 {[%clk 0:00:10.7]}
29. c6 {[%clk 0:00:36.1]} 29... Re2 {[%clk 0:00:11.3]} 30. Bd6 {[%clk
0:00:36.5]} 30... Re8 {[%clk 0:00:03.3]} 31. c7 {[%clk 0:00:33.4]} 31... Rc8
{[%clk 0:00:04.2]} 32. Rd1 {[%clk 0:00:33.7]} 32... f6 {[%clk 0:00:03.1]} 33.
Bf4 {[%clk 0:00:32.4]} 33... Kf7 {[%clk 0:00:04.2]} 34. Rd8 {[%clk 0:00:32.8]}
34... Rxc7 {[%clk 0:00:04.9]} 35. Bxc7 {[%clk 0:00:33.1]} 1-0

[Event "*** Titled Tuesday Blitz"]
[Site "Chess.com"]
[Date "2018.05.01"]
[Round "9"]
[White "chidori_boruto"]
[Black "Kimster98"]
[Result "0-1"]
[WhiteElo "2520"]
[BlackElo "2541"]
[TimeControl "180+2"]
[EndTime "15:00:38 PDT"]
[Termination "Kimster98 won by resignation"]

1. d4 {[%clk 0:03:01.9]} 1... Nf6 {[%clk 0:02:59.6]} 2. Bf4 {[%clk 0:03:01.1]}
2... d5 {[%clk 0:02:58.9]} 3. e3 {[%clk 0:03:02.1]} 3... e6 {[%clk 0:02:59.2]}
4. Nf3 {[%clk 0:03:03.3]} 4... Bd6 {[%clk 0:02:57]} 5. Bg3 {[%clk 0:03:04.4]}
5... O-O {[%clk 0:02:57.3]} 6. Nbd2 {[%clk 0:03:05.5]} 6... c5 {[%clk
0:02:51.5]} 7. c3 {[%clk 0:03:06.5]} 7... b6 {[%clk 0:02:52.9]} 8. Bd3 {[%clk
0:03:03.1]} 8... Ba6 {[%clk 0:02:52.9]} 9. Bxa6 {[%clk 0:03:02.4]} 9... Nxa6
{[%clk 0:02:54.8]} 10. O-O {[%clk 0:03:03.3]} 10... Nb8 {[%clk 0:02:47.7]} 11.
Ne5 {[%clk 0:03:03.7]} 11... Qc7 {[%clk 0:02:47]} 12. f4 {[%clk 0:03:00.9]}
12... Nc6 {[%clk 0:02:43.9]} 13. Qf3 {[%clk 0:03:00.6]} 13... Nd7 {[%clk
0:02:39.7]} 14. Rad1 {[%clk 0:02:41.4]} 14... f5 {[%clk 0:02:21.4]} 15. Nxc6
{[%clk 0:02:33.6]} 15... Qxc6 {[%clk 0:02:21.6]} 16. Nc4 {[%clk 0:02:33.5]}
16... Nf6 {[%clk 0:02:03.9]} 17. Bh4 {[%clk 0:02:26.5]} 17... Ne4 {[%clk
0:02:00.2]} 18. Nd2 {[%clk 0:02:26.3]} 18... Nxd2 {[%clk 0:01:56.3]} 19. Rxd2
{[%clk 0:02:28.2]} 19... b5 {[%clk 0:01:47.5]} 20. g4 {[%clk 0:02:22.7]} 20...
g6 {[%clk 0:01:46.6]} 21. Rg2 {[%clk 0:02:23.1]} 21... b4 {[%clk 0:01:09.8]} 22.
gxf5 {[%clk 0:02:15.3]} 22... Rxf5 {[%clk 0:01:10.3]} 23. Rxg6+ {[%clk
0:02:01.6]} 23... hxg6 {[%clk 0:01:09.5]} 24. Kh1 {[%clk 0:02:01.6]} 24... Kf7
{[%clk 0:01:06.4]} 25. Rg1 {[%clk 0:02:02.4]} 25... Rg8 {[%clk 0:00:59.2]} 26.
Bg5 {[%clk 0:02:01.4]} 26... Be7 {[%clk 0:00:57.7]} 27. Qh3 {[%clk 0:01:58.8]}
27... Bxg5 {[%clk 0:00:57.6]} 28. fxg5 {[%clk 0:02:00.1]} 28... Qc8 {[%clk
0:00:48.4]} 29. Qg3 {[%clk 0:01:58]} 29... Qb8 {[%clk 0:00:47.8]} 30. Qg2 {[%clk
0:01:55.5]} 30... Rh8 {[%clk 0:00:43.2]} 31. dxc5 {[%clk 0:01:53.7]} 31... bxc3
{[%clk 0:00:29.7]} 32. bxc3 {[%clk 0:01:53.7]} 32... Qe5 {[%clk 0:00:30.9]} 33.
c4 {[%clk 0:01:51.9]} 33... Qe4 {[%clk 0:00:30.9]} 34. cxd5 {[%clk 0:01:51.1]}
34... Qxg2+ {[%clk 0:00:30.1]} 35. Rxg2 {[%clk 0:01:52.3]} 35... Rf1+ {[%clk
0:00:31.2]} 36. Rg1 {[%clk 0:01:53.5]} 36... Rxg1+ {[%clk 0:00:32.8]} 37. Kxg1
{[%clk 0:01:55.3]} 37... exd5 {[%clk 0:00:34.6]} 38. Kg2 {[%clk 0:00:45.6]}
38... Rc8 {[%clk 0:00:33.8]} 39. Kf3 {[%clk 0:00:45.7]} 39... Rxc5 {[%clk
0:00:33.5]} 40. Kf4 {[%clk 0:00:47.2]} 40... Rc4+ {[%clk 0:00:33.9]} 41. Ke5
{[%clk 0:00:48.2]} 41... Re4+ {[%clk 0:00:35.2]} 42. Kxd5 {[%clk 0:00:49.4]}
42... Rxe3 {[%clk 0:00:37.1]} 43. Kc6 {[%clk 0:00:45.3]} 43... Rh3 {[%clk
0:00:36.2]} 44. a4 {[%clk 0:00:44.8]} 44... Rxh2 {[%clk 0:00:38.1]} 45. Kb7
{[%clk 0:00:44.4]} 45... Ra2 {[%clk 0:00:40]} 0-1

[Event "*** Titled Tuesday Blitz"]
[Site "Chess.com"]
[Date "2018.05.01"]
[Round "9"]
[White "Last7Samurai"]
[Black "Ginger_GM"]
[Result "0-1"]
[WhiteElo "2636"]
[BlackElo "2517"]
[TimeControl "180+2"]
[EndTime "15:00:45 PDT"]
[Termination "Ginger_GM won by resignation"]

1. e4 {[%clk 0:02:59.5]} 1... c5 {[%clk 0:02:59]} 2. Nf3 {[%clk 0:02:59.9]} 2...
d6 {[%clk 0:03:00]} 3. d4 {[%clk 0:02:59.1]} 3... cxd4 {[%clk 0:03:01]} 4. Nxd4
{[%clk 0:03:01]} 4... Nf6 {[%clk 0:03:02.3]} 5. Nc3 {[%clk 0:03:02.6]} 5... g6
{[%clk 0:03:03.8]} 6. Be3 {[%clk 0:03:01.9]} 6... Bg7 {[%clk 0:02:56.7]} 7. f3
{[%clk 0:03:02.9]} 7... Nc6 {[%clk 0:02:57.1]} 8. Qd2 {[%clk 0:03:03.9]} 8...
Bd7 {[%clk 0:02:57.6]} 9. O-O-O {[%clk 0:03:04.2]} 9... Rc8 {[%clk 0:02:58.4]}
10. Kb1 {[%clk 0:03:02]} 10... Ne5 {[%clk 0:02:59.2]} 11. g4 {[%clk 0:03:00.1]}
11... O-O {[%clk 0:02:59.5]} 12. h4 {[%clk 0:02:59.2]} 12... b5 {[%clk
0:03:00.4]} 13. h5 {[%clk 0:02:57.4]} 13... Nxf3 {[%clk 0:02:57.7]} 14. Nxf3
{[%clk 0:02:56.4]} 14... Bxg4 {[%clk 0:02:58.4]} 15. Be2 {[%clk 0:02:53.1]}
15... b4 {[%clk 0:02:59.5]} 16. Nd5 {[%clk 0:02:48.4]} 16... Nxe4 {[%clk
0:03:00.3]} 17. Qxb4 {[%clk 0:02:32.5]} 17... e6 {[%clk 0:03:01.1]} 18. hxg6
{[%clk 0:02:07.7]} 18... Rb8 {[%clk 0:02:28.2]} 19. Nb6 {[%clk 0:01:47.7]} 19...
Rxb6 {[%clk 0:01:26.2]} 20. Bxb6 {[%clk 0:01:45.9]} 20... Qxb6 {[%clk
0:01:26.5]} 21. Qxb6 {[%clk 0:01:45.5]} 21... axb6 {[%clk 0:01:27.4]} 22. gxh7+
{[%clk 0:01:34]} 22... Kh8 {[%clk 0:01:27.9]} 23. Rdg1 {[%clk 0:01:30.7]} 23...
Bxf3 {[%clk 0:01:20.2]} 24. Bxf3 {[%clk 0:01:31]} 24... Nd2+ {[%clk 0:01:21]}
25. Kc1 {[%clk 0:01:32.5]} 25... Nxf3 {[%clk 0:01:22.6]} 26. Rg4 {[%clk
0:01:31.1]} 26... Ne5 {[%clk 0:01:12.4]} 27. Rb4 {[%clk 0:01:31.4]} 27... Nd7
{[%clk 0:01:10.9]} 28. Rc4 {[%clk 0:01:31.6]} 28... d5 {[%clk 0:01:07.2]} 29.
Rc7 {[%clk 0:01:30.2]} 29... Ne5 {[%clk 0:01:07.5]} 30. Rb7 {[%clk 0:01:28.5]}
30... f5 {[%clk 0:00:43.7]} 31. Rxb6 {[%clk 0:01:16.1]} 31... Nc4 {[%clk
0:00:42.4]} 32. Rxe6 {[%clk 0:01:10]} 32... Bxb2+ {[%clk 0:00:40.8]} 33. Kd1
{[%clk 0:01:10.6]} 33... f4 {[%clk 0:00:39.4]} 34. Rg6 {[%clk 0:00:56.5]} 34...
Bg7 {[%clk 0:00:22.4]} 35. Rhg1 {[%clk 0:00:53.8]} 35... Rf7 {[%clk 0:00:23.6]}
36. Ke2 {[%clk 0:00:10.5]} 36... f3+ {[%clk 0:00:24.3]} 37. Kd3 {[%clk 0:00:12]}
37... Ne5+ {[%clk 0:00:22.9]} 38. Ke3 {[%clk 0:00:13.3]} 38... Nxg6 {[%clk
0:00:23.9]} 39. Rxg6 {[%clk 0:00:15.2]} 39... f2 {[%clk 0:00:25.1]} 0-1

[Event "*** Titled Tuesday Blitz"]
[Site "Chess.com"]
[Date "2018.05.01"]
[Round "9"]
[White "Alopekos"]
[Black "Mikhail_Golubev"]
[Result "0-1"]
[WhiteElo "2311"]
[BlackElo "2375"]
[TimeControl "180+2"]
[EndTime "15:01:04 PDT"]
[Termination "Mikhail_Golubev won by resignation"]

1. e4 {[%clk 0:03:01.2]} 1... c5 {[%clk 0:02:59.9]} 2. Nf3 {[%clk 0:03:01.8]}
2... d6 {[%clk 0:03:00.4]} 3. d4 {[%clk 0:03:02]} 3... cxd4 {[%clk 0:03:00.9]}
4. Nxd4 {[%clk 0:03:03.9]} 4... Nf6 {[%clk 0:03:01.2]} 5. Nc3 {[%clk 0:03:05.1]}
5... g6 {[%clk 0:03:00.8]} 6. Be3 {[%clk 0:02:59]} 6... Bg7 {[%clk 0:03:00.7]}
7. f3 {[%clk 0:03:00.3]} 7... Nc6 {[%clk 0:03:01.3]} 8. Qd2 {[%clk 0:03:00.9]}
8... O-O {[%clk 0:03:01.3]} 9. O-O-O {[%clk 0:03:01.7]} 9... d5 {[%clk
0:03:01.2]} 10. Nxc6 {[%clk 0:03:02.5]} 10... bxc6 {[%clk 0:03:01]} 11. Bc4
{[%clk 0:03:04]} 11... Rb8 {[%clk 0:01:45.9]} 12. Bb3 {[%clk 0:02:39]} 12... Be6
{[%clk 0:01:45.9]} 13. e5 {[%clk 0:01:04.7]} 13... Nd7 {[%clk 0:01:44.4]} 14. f4
{[%clk 0:01:05.8]} 14... a5 {[%clk 0:01:40.7]} 15. Ne2 {[%clk 0:00:43]} 15... a4
{[%clk 0:01:32.2]} 16. Bxa4 {[%clk 0:00:43.5]} 16... c5 {[%clk 0:01:32]} 17.
Bxd7 {[%clk 0:00:22.4]} 17... Qxd7 {[%clk 0:01:31]} 18. Bxc5 {[%clk 0:00:24]}
18... Rfc8 {[%clk 0:01:23.8]} 19. Ba3 {[%clk 0:00:15.6]} 19... d4 {[%clk
0:01:13.9]} 20. Qxd4 {[%clk 0:00:05.4]} 20... Qc6 {[%clk 0:00:55]} 21. Nc3
{[%clk 0:00:05.9]} 21... Qxg2 {[%clk 0:00:55.2]} 22. Rhg1 {[%clk 0:00:02.3]}
22... Qxh2 {[%clk 0:00:53.6]} 23. Rd2 {[%clk 0:00:03.6]} 23... Qh4 {[%clk
0:00:49.6]} 24. Rgd1 {[%clk 0:00:03.5]} 24... Bh6 {[%clk 0:00:49.1]} 25. Rf1
{[%clk 0:00:04.2]} 25... Bh3 {[%clk 0:00:37.6]} 26. Qf2 {[%clk 0:00:04.6]} 26...
Qg4 {[%clk 0:00:34.3]} 27. Rh1 {[%clk 0:00:02]} 27... Bxf4 {[%clk 0:00:32.8]}
28. Bxe7 {[%clk 0:00:02.7]} 28... Bxd2+ {[%clk 0:00:20.4]} 29. Qxd2 {[%clk
0:00:03.1]} 29... Qf3 {[%clk 0:00:20.3]} 30. Re1 {[%clk 0:00:03]} 30... Qb7
{[%clk 0:00:19.2]} 31. b3 {[%clk 0:00:03.5]} 31... Qxe7 {[%clk 0:00:19.1]} 32.
Qf4 {[%clk 0:00:02.7]} 32... Rxc3 {[%clk 0:00:17.6]} 33. Kb2 {[%clk 0:00:04]}
33... Rbc8 {[%clk 0:00:16.6]} 34. Re2 {[%clk 0:00:05.1]} 34... Bf5 {[%clk
0:00:16.2]} 0-1

[Event "*** Titled Tuesday Blitz"]
[Site "Chess.com"]
[Date "2018.05.01"]
[Round "9"]
[White "ruvat"]
[Black "51616516516"]
[Result "1-0"]
[WhiteElo "2258"]
[BlackElo "2167"]
[TimeControl "180+2"]
[EndTime "15:01:09 PDT"]
[Termination "ruvat won on time"]

1. d4 {[%clk 0:02:50.5]} 1... Nf6 {[%clk 0:03:00]} 2. c4 {[%clk 0:02:50.9]} 2...
g6 {[%clk 0:03:01.3]} 3. Nf3 {[%clk 0:02:51.7]} 3... Bg7 {[%clk 0:03:02.7]} 4.
g3 {[%clk 0:02:52.9]} 4... d6 {[%clk 0:03:04.2]} 5. Bg2 {[%clk 0:02:53.9]} 5...
O-O {[%clk 0:03:05.7]} 6. O-O {[%clk 0:02:55.3]} 6... Nc6 {[%clk 0:03:07.1]} 7.
d5 {[%clk 0:02:55.3]} 7... Na5 {[%clk 0:03:07.1]} 8. Qa4 {[%clk 0:02:55.1]} 8...
c5 {[%clk 0:03:06.9]} 9. Bd2 {[%clk 0:02:55.4]} 9... b6 {[%clk 0:03:03.5]} 10.
Bc3 {[%clk 0:02:55.9]} 10... Bd7 {[%clk 0:03:03.9]} 11. Qc2 {[%clk 0:02:56.5]}
11... a6 {[%clk 0:02:50.8]} 12. Nbd2 {[%clk 0:02:55.8]} 12... b5 {[%clk
0:02:51.6]} 13. b3 {[%clk 0:02:56.6]} 13... b4 {[%clk 0:02:06.4]} 14. Bb2 {[%clk
0:02:56.3]} 14... Nb7 {[%clk 0:02:08.3]} 15. e4 {[%clk 0:02:56]} 15... a5 {[%clk
0:02:09.5]} 16. a4 {[%clk 0:02:50.8]} 16... bxa3 {[%clk 0:02:06.5]} 17. Rxa3
{[%clk 0:02:50.6]} 17... Qb6 {[%clk 0:02:02.2]} 18. Bc3 {[%clk 0:02:42.3]} 18...
Ra7 {[%clk 0:01:56.6]} 19. Rfa1 {[%clk 0:02:39.1]} 19... Rfa8 {[%clk 0:01:58]}
20. h3 {[%clk 0:02:35.5]} 20... Ne8 {[%clk 0:01:50.8]} 21. e5 {[%clk 0:02:33.6]}
21... Nc7 {[%clk 0:01:13.9]} 22. Ne4 {[%clk 0:01:47.9]} 22... Na6 {[%clk
0:01:07.6]} 23. exd6 {[%clk 0:01:46.3]} 23... Nb4 {[%clk 0:00:58.5]} 24. Qb2
{[%clk 0:01:38.9]} 24... Bxc3 {[%clk 0:00:55.9]} 25. Qxc3 {[%clk 0:01:39.1]}
25... Nxd6 {[%clk 0:00:56.5]} 26. Nxd6 {[%clk 0:01:26.8]} 26... Qxd6 {[%clk
0:00:51.2]} 27. Re1 {[%clk 0:01:16.6]} 27... a4 {[%clk 0:00:28.8]} 28. bxa4
{[%clk 0:01:01.9]} 28... Rxa4 {[%clk 0:00:30.7]} 29. Rxa4 {[%clk 0:01:02.3]}
29... Rxa4 {[%clk 0:00:31.7]} 30. Ng5 {[%clk 0:01:02.1]} 30... Ra2 {[%clk
0:00:25.2]} 31. Qf3 {[%clk 0:00:55.9]} 31... Be8 {[%clk 0:00:10.2]} 32. Ne4
{[%clk 0:00:55]} 32... Qe5 {[%clk 0:00:09.1]} 33. d6 {[%clk 0:00:44.6]} 33...
Kg7 {[%clk 0:00:04.9]} 34. dxe7 {[%clk 0:00:15.6]} 34... f5 {[%clk 0:00:05.5]}
35. Qc3 {[%clk 0:00:15.7]} 35... Qxc3 {[%clk 0:00:03.4]} 36. Nxc3 {[%clk
0:00:16.1]} 36... Nd3 {[%clk 0:00:03.5]} 37. Rd1 {[%clk 0:00:14.7]} 1-0

[Event "*** Titled Tuesday Blitz"]
[Site "Chess.com"]
[Date "2018.05.01"]
[Round "9"]
[White "KRASAVCHIK2002"]
[Black "ilmago"]
[Result "1-0"]
[WhiteElo "2059"]
[BlackElo "1942"]
[TimeControl "180+2"]
[EndTime "15:01:28 PDT"]
[Termination "KRASAVCHIK2002 won on time"]

1. d4 {[%clk 0:03:01.9]} 1... Nf6 {[%clk 0:02:59.9]} 2. Nf3 {[%clk 0:02:59.3]}
2... g6 {[%clk 0:02:59.2]} 3. Bg5 {[%clk 0:02:53.7]} 3... Bg7 {[%clk 0:02:59.8]}
4. Bxf6 {[%clk 0:02:54.5]} 4... Bxf6 {[%clk 0:03:00.4]} 5. e3 {[%clk 0:02:55.7]}
5... d6 {[%clk 0:02:58.9]} 6. c3 {[%clk 0:02:56.5]} 6... O-O {[%clk 0:02:57.3]}
7. Bd3 {[%clk 0:02:56.8]} 7... Nd7 {[%clk 0:02:57.6]} 8. Nbd2 {[%clk 0:02:57.8]}
8... c5 {[%clk 0:02:58.2]} 9. h4 {[%clk 0:02:58.8]} 9... cxd4 {[%clk 0:02:56.6]}
10. exd4 {[%clk 0:02:58.6]} 10... e5 {[%clk 0:02:54.8]} 11. dxe5 {[%clk
0:02:44.3]} 11... Nxe5 {[%clk 0:02:52.5]} 12. Nxe5 {[%clk 0:02:45.1]} 12... dxe5
{[%clk 0:02:50.9]} 13. Qc2 {[%clk 0:02:46]} 13... Bxh4 {[%clk 0:02:42.3]} 14. g3
{[%clk 0:02:43.8]} 14... Bf6 {[%clk 0:02:36.6]} 15. O-O-O {[%clk 0:02:44]} 15...
Be6 {[%clk 0:02:28.9]} 16. Bc4 {[%clk 0:02:13.9]} 16... Bxc4 {[%clk 0:02:22.9]}
17. Nxc4 {[%clk 0:02:13.7]} 17... Qe7 {[%clk 0:02:17.8]} 18. Kb1 {[%clk
0:02:09.8]} 18... Rad8 {[%clk 0:02:16]} 19. Ne3 {[%clk 0:02:06.5]} 19... Qe6
{[%clk 0:02:07.3]} 20. Qe4 {[%clk 0:01:57.5]} 20... b6 {[%clk 0:01:45.5]} 21.
Nd5 {[%clk 0:01:50.1]} 21... Bg7 {[%clk 0:01:37.7]} 22. g4 {[%clk 0:01:21.8]}
22... f5 {[%clk 0:01:33]} 23. gxf5 {[%clk 0:01:19.2]} 23... gxf5 {[%clk
0:01:29.4]} 24. Qc4 {[%clk 0:01:15.4]} 24... Kh8 {[%clk 0:01:11]} 25. Rh2 {[%clk
0:01:00.7]} 25... h6 {[%clk 0:01:08.6]} 26. f3 {[%clk 0:00:56.7]} 26... e4
{[%clk 0:01:04.5]} 27. Re2 {[%clk 0:00:50.8]} 27... Rfe8 {[%clk 0:00:58.5]} 28.
fxe4 {[%clk 0:00:47.4]} 28... fxe4 {[%clk 0:00:58.8]} 29. Qb3 {[%clk 0:00:47.3]}
29... Qg4 {[%clk 0:00:53]} 30. Rde1 {[%clk 0:00:43.2]} 30... Re5 {[%clk
0:00:40.7]} 31. Ne3 {[%clk 0:00:39.4]} 31... Qg5 {[%clk 0:00:39]} 32. a4 {[%clk
0:00:33.9]} 32... Qe7 {[%clk 0:00:34.6]} 33. Nc4 {[%clk 0:00:31.6]} 33... Re6
{[%clk 0:00:34.9]} 34. Ne3 {[%clk 0:00:29.1]} 34... Bf6 {[%clk 0:00:35.4]} 35.
Nd5 {[%clk 0:00:25.6]} 35... Qh7 {[%clk 0:00:19.2]} 36. Nxf6 {[%clk 0:00:23.1]}
36... Rxf6 {[%clk 0:00:20.6]} 37. Rxe4 {[%clk 0:00:22.5]} 37... Re8 {[%clk
0:00:17.6]} 38. Qc4 {[%clk 0:00:20.8]} 38... Rxe4 {[%clk 0:00:09.3]} 39. Rxe4
{[%clk 0:00:18.3]} 39... Rf4 {[%clk 0:00:02.1]} 40. Qc8+ {[%clk 0:00:15.2]} 1-0

[Event "*** Titled Tuesday Blitz"]
[Site "Chess.com"]
[Date "2018.05.01"]
[Round "9"]
[White "Zaven_ChessMood"]
[Black "tuttocalabria"]
[Result "1-0"]
[WhiteElo "2859"]
[BlackElo "2451"]
[TimeControl "180+2"]
[EndTime "15:01:35 PDT"]
[Termination "Zaven_ChessMood won by resignation"]

1. e4 {[%clk 0:03:01.9]} 1... d6 {[%clk 0:02:44.4]} 2. d4 {[%clk 0:03:02.1]}
2... Nf6 {[%clk 0:02:44]} 3. Nc3 {[%clk 0:03:03.7]} 3... c6 {[%clk 0:02:44.5]}
4. f4 {[%clk 0:03:04.5]} 4... d5 {[%clk 0:02:44.2]} 5. e5 {[%clk 0:03:04.8]}
5... Ng8 {[%clk 0:02:45.2]} 6. Bd3 {[%clk 0:03:04.7]} 6... g6 {[%clk 0:02:45.7]}
7. Nf3 {[%clk 0:03:03.5]} 7... Bg4 {[%clk 0:02:45.8]} 8. h3 {[%clk 0:03:03.9]}
8... Bxf3 {[%clk 0:02:46.7]} 9. Qxf3 {[%clk 0:03:05.7]} 9... e6 {[%clk 0:02:48]}
10. Ne2 {[%clk 0:03:04.1]} 10... h5 {[%clk 0:02:48.5]} 11. g3 {[%clk 0:03:02.6]}
11... c5 {[%clk 0:02:46.8]} 12. c3 {[%clk 0:03:02.5]} 12... Nc6 {[%clk
0:02:47.4]} 13. a3 {[%clk 0:03:02.4]} 13... Qb6 {[%clk 0:02:44.4]} 14. dxc5
{[%clk 0:02:58.4]} 14... Bxc5 {[%clk 0:02:44.4]} 15. b4 {[%clk 0:02:59.6]} 15...
Be7 {[%clk 0:02:44.5]} 16. Be3 {[%clk 0:03:00.4]} 16... Qc7 {[%clk 0:02:45.5]}
17. Rc1 {[%clk 0:02:58.9]} 17... a6 {[%clk 0:02:34]} 18. c4 {[%clk 0:02:59.4]}
18... dxc4 {[%clk 0:02:32.9]} 19. Rxc4 {[%clk 0:02:58.6]} 19... Rd8 {[%clk
0:02:31.4]} 20. Be4 {[%clk 0:02:52.7]} 20... Rc8 {[%clk 0:02:25.9]} 21. Kf2
{[%clk 0:02:47.6]} 21... Nh6 {[%clk 0:02:26.1]} 22. Rhc1 {[%clk 0:02:46.5]}
22... O-O {[%clk 0:02:09.8]} 23. g4 {[%clk 0:02:44.8]} 23... Bh4+ {[%clk
0:02:03.6]} 24. Kg2 {[%clk 0:02:45.1]} 24... Kh7 {[%clk 0:01:48.6]} 25. gxh5
{[%clk 0:02:37.3]} 25... Nf5 {[%clk 0:01:48.6]} 26. hxg6+ {[%clk 0:02:33.9]}
26... fxg6 {[%clk 0:01:49]} 27. Bxf5 {[%clk 0:02:34.9]} 27... exf5 {[%clk
0:01:43.8]} 28. Nd4 {[%clk 0:02:36]} 28... Qf7 {[%clk 0:01:30.6]} 29. Nxc6
{[%clk 0:02:35.8]} 29... bxc6 {[%clk 0:01:30.7]} 30. Rxc6 {[%clk 0:02:36.8]}
30... Rxc6 {[%clk 0:01:30.1]} 31. Qxc6 {[%clk 0:02:37.1]} 31... Rd8 {[%clk
0:01:28.3]} 32. e6 {[%clk 0:02:33.9]} 32... Qf6 {[%clk 0:01:26.3]} 33. Kf3
{[%clk 0:02:30.7]} 33... Rd3 {[%clk 0:01:22.8]} 34. Qb7+ {[%clk 0:02:01.2]}
34... Kh6 {[%clk 0:01:19.8]} 35. Rc7 {[%clk 0:02:01.9]} 35... Rxe3+ {[%clk
0:01:12.4]} 36. Kxe3 {[%clk 0:02:01.9]} 36... Qxe6+ {[%clk 0:01:12.6]} 37. Kd3
{[%clk 0:02:00.7]} 37... Qb3+ {[%clk 0:01:08.6]} 38. Rc3 {[%clk 0:01:58.7]}
38... Qd1+ {[%clk 0:01:07.2]} 39. Kc4 {[%clk 0:01:55.9]} 39... Qe2+ {[%clk
0:01:05.6]} 40. Kc5 {[%clk 0:01:54.2]} 40... Bf2+ {[%clk 0:01:05.1]} 41. Kc6
{[%clk 0:01:47.7]} 41... Bd4 {[%clk 0:01:03.6]} 42. Rc5 {[%clk 0:01:39.9]} 42...
Qe4+ {[%clk 0:00:58.6]} 43. Kb6 {[%clk 0:01:37.8]} 43... Qxf4 {[%clk 0:00:58.2]}
44. Qd5 {[%clk 0:01:15.7]} 44... Qe3 {[%clk 0:00:33.3]} 45. Kb7 {[%clk
0:01:11.8]} 45... Bxc5 {[%clk 0:00:31.9]} 46. bxc5 {[%clk 0:01:13.4]} 46... Qxa3
{[%clk 0:00:33]} 47. c6 {[%clk 0:01:14.3]} 47... Qb4+ {[%clk 0:00:33.8]} 48. Ka7
{[%clk 0:01:11.7]} 48... Qe7+ {[%clk 0:00:32.6]} 49. Qd7 {[%clk 0:01:12.5]}
49... Qc5+ {[%clk 0:00:31.7]} 50. Ka8 {[%clk 0:01:12.8]} 50... Qb5 {[%clk
0:00:18.6]} 51. Qb7 {[%clk 0:01:10]} 51... Qe2 {[%clk 0:00:12.7]} 52. c7 {[%clk
0:01:11.1]} 52... a5 {[%clk 0:00:12.4]} 53. c8=Q {[%clk 0:01:11.5]} 53... a4
{[%clk 0:00:13.4]} 54. Qh8+ {[%clk 0:01:04.2]} 54... Kg5 {[%clk 0:00:14.1]} 55.
h4+ {[%clk 0:01:05.5]} 55... Kf4 {[%clk 0:00:14.6]} 56. Qd4+ {[%clk 0:01:05.7]}
56... Kg3 {[%clk 0:00:15.3]} 57. Qg1+ {[%clk 0:01:05.4]} 57... Kf4 {[%clk
0:00:14.5]} 58. Qg5+ {[%clk 0:01:05.1]} 1-0